fUSD/lending_fUSD_20250521
["ID","MTS","AMOUNT","RATE_DAILY","PERIOD"]
[361804524,1747819750339,-500.0,0.00011999,2]
[361804525,1747819750362,-145.06432,0.00011999,2]
[361804537,1747819832213,-169.13202049,0.000119,2]
[361804538,1747819832226,-1200.0,0.00011998,2]
[361804539,1747819832236,-300.0,0.00011998,2]
[361804540,1747819832246,-354.93568,0.00011999,2]
[361804541,1747819832256,-500.0,0.00011999,2]
[361804542,1747819832267,-500.0,0.00011999,2]
[361804543,1747819832276,-500.0,0.00011999,2]
[361804544,1747819832285,-102.78167291,0.00011999,2]
[361804545,1747819832307,-397.21832709,0.00011999,2]
[361804546,1747819832316,-500.0,0.00011999,2]
[361804547,1747819832325,-500.0,0.00011999,2]
[361804548,1747819832335,-500.0,0.00011999,2]
[361804549,1747819832345,-175.2346591,0.00011999,2]
[361804550,1747819832356,-324.7653409,0.00011999,2]
[361804551,1747819832367,-500.0,0.00011999,2]
[361804552,1747819832376,-500.0,0.00011999,2]
[361804553,1747819832386,-500.0,0.00011999,2]
[361804554,1747819832396,-500.0,0.00011999,2]
[361804555,1747819832405,-500.0,0.00011999,2]
[361804556,1747819832415,-500.0,0.00011999,2]
[361804557,1747819832425,-500.0,0.00011999,2]
[361804558,1747819832434,-500.0,0.00011999,2]
[361804559,1747819832444,-500.0,0.00011999,2]
[361804560,1747819832453,-500.0,0.00011999,2]
[361804561,1747819832465,-500.0,0.00011999,2]
[361804562,1747819832474,-500.0,0.00011999,2]
[361804563,1747819832484,-500.0,0.00011999,2]
[361804565,1747819832493,-500.0,0.00011999,2]
[361804566,1747819832503,-500.0,0.00011999,2]
[361804567,1747819832513,-500.0,0.00011999,2]
[361804568,1747819832522,-500.0,0.00011999,2]
[361804569,1747819832531,-500.0,0.00011999,2]
[361804570,1747819832541,-500.0,0.00011999,2]
[361804572,1747819832550,-500.0,0.00011999,2]
[361804574,1747819832560,-500.0,0.00011999,2]
[361804576,1747819832569,-500.0,0.00011999,2]
[361804578,1747819832579,-500.0,0.00011999,2]
[361804580,1747819832588,-500.0,0.00011999,2]
[361804582,1747819832597,-500.0,0.00011999,2]
[361804583,1747819832606,-500.0,0.00011999,2]
[361804585,1747819832615,-500.0,0.00011999,2]
[361804587,1747819832625,-189.90800898,0.00011999,2]
[361804589,1747819832634,-500.0,0.00011999,2]
[361804591,1747819832646,-500.0,0.00011999,2]
[361804593,1747819832655,-500.0,0.00011999,2]
[361804595,1747819832665,-500.0,0.00011999,2]
[361804597,1747819832674,-500.0,0.00011999,2]
[361804600,1747819832685,-495.87833221,0.00011999,2]
[361804601,1747819832695,-500.0,0.00011999,2]
[361804605,1747819832706,-500.0,0.00011999,2]
[361804608,1747819832717,-500.0,0.00011999,2]
[361804610,1747819832727,-500.0,0.00011999,2]
[361804614,1747819832738,-500.0,0.00011999,2]
[361804616,1747819832748,-500.0,0.00011999,2]
[361804618,1747819832758,-500.0,0.00011999,2]
[361804620,1747819832767,-500.0,0.00011999,2]
[361804621,1747819832777,-500.0,0.00011999,2]
[361804623,1747819832787,-550.0,0.00011999,2]
[361804625,1747819832798,-500.0,0.00011999,2]
[361804628,1747819832808,-500.0,0.00011999,2]
[361804629,1747819832819,-500.0,0.00011999,2]
[361804632,1747819832829,-500.0,0.00011999,2]
[361804633,1747819832839,-500.0,0.00011999,2]
[361804636,1747819832848,-500.0,0.00011999,2]
[361804638,1747819832858,-500.0,0.00011999,2]
[361804639,1747819832868,-500.0,0.00011999,2]
[361804642,1747819832878,-500.0,0.00011999,2]
[361804644,1747819832887,-500.0,0.00011999,2]
[361804646,1747819832897,-500.0,0.00011999,2]
[361804648,1747819832907,-500.0,0.00011999,2]
[361804650,1747819832917,-500.0,0.00011999,2]
[361804652,1747819832927,-500.0,0.00011999,2]
[361804653,1747819832937,-500.0,0.00011999,2]
[361804655,1747819832948,-500.0,0.00011999,2]
[361804658,1747819832960,-1688.21198993,0.00011999,2]
[361804660,1747819832970,-1688.21198993,0.00011999,2]
[361804662,1747819832980,-1688.21198993,0.00011999,2]
[361804664,1747819832990,-1688.21198993,0.00011999,2]
[361804666,1747819832999,-1343.67590851,0.00011999,2]
[361804668,1747819833012,-344.53608142,0.00011999,2]
[361804670,1747819833022,-372.96490853,0.00011999,2]
[361804683,1747819833158,-1315.2470814,0.00011999,2]
[361804685,1747819833168,-1168.7251712,0.00011999,2]
[361804686,1747819833301,-417.74206616,0.00011999,2]
[361804687,1747819833315,-101.74475257,0.00011999,2]
[361804688,1747819833325,-1688.21198993,0.00011999,2]
[361804690,1747819833335,-1688.21198993,0.00011999,2]
[361804692,1747819833345,-827.84090318,0.00011999,2]
[361804733,1747819833788,-860.37108675,0.00011999,2]
[361804735,1747819833798,-114.68924032,0.00011999,2]
[361805084,1747819838487,-1438.37986925,0.00011999,2]
[361805088,1747819838519,-135.14288036,0.00011999,2]
[361805090,1747819838529,-1688.21198993,0.00011999,2]
[361805092,1747819838538,-1688.21198993,0.00011999,2]
[361805094,1747819838548,-959.75377263,0.00011999,2]
[361805095,1747819838560,-728.4582173,0.00011999,2]
[361805096,1747819838569,-1688.21198993,0.00011999,2]
[361805097,1747819838579,-1688.21198993,0.00011999,2]
[361805098,1747819838588,-1688.21198993,0.00011999,2]
[361805099,1747819838597,-147832.98500766,0.00012,2]
[361805100,1747819838607,-249271.54938368,0.00012,2]
[361805101,1747819838616,-1887.326924,0.00012,2]
[361805102,1747819838626,-1680.0,0.00013198,2]
[361805103,1747819838636,-247.61760287,0.000135,5]
[361805104,1747819838645,-258.54348946,0.00013599,2]
[361805105,1747819838655,-154.66,0.00013699,2]
[361805106,1747819838664,-500.0,0.00013699,2]
[361805107,1747819838674,-500.0,0.00013699,2]
[361805108,1747819838684,-500.0,0.00013699,2]
[361805109,1747819838694,-500.0,0.00013699,2]
[361805110,1747819838703,-500.0,0.00013699,2]
[361805111,1747819838714,-500.0,0.00013699,2]
[361805112,1747819838724,-500.0,0.00013699,2]
[361805113,1747819838733,-500.0,0.00013699,2]
[361805114,1747819838743,-500.0,0.00013699,2]
[361805115,1747819838753,-500.0,0.00013699,2]
[361805116,1747819838764,-500.0,0.00013699,2]
[361805117,1747819838774,-500.0,0.00013699,2]
[361805118,1747819838784,-500.0,0.00013699,2]
[361805119,1747819838794,-500.0,0.00013699,2]
[361805120,1747819838805,-500.0,0.00013699,2]
[361805121,1747819838814,-500.0,0.00013699,2]
[361805122,1747819838824,-500.0,0.00013699,2]
[361805123,1747819838834,-500.0,0.00013699,2]
[361805124,1747819838844,-500.0,0.00013699,2]
[361805125,1747819838854,-500.0,0.00013699,2]
[361805126,1747819838865,-500.0,0.00013699,2]
[361805127,1747819838875,-500.0,0.00013699,2]
[361805128,1747819838886,-500.0,0.00013699,2]
[361805129,1747819838897,-500.0,0.00013699,2]
[361805130,1747819838907,-500.0,0.00013699,2]
[361805131,1747819838917,-500.0,0.00013699,2]
[361805132,1747819838927,-500.0,0.00013699,2]
[361805133,1747819838937,-500.0,0.00013699,2]
[361805134,1747819838948,-500.0,0.00013699,2]
[361805135,1747819838957,-500.0,0.00013699,2]
[361805136,1747819838968,-500.0,0.00013699,2]
[361805137,1747819838978,-500.0,0.00013699,2]
[361805138,1747819838987,-500.0,0.00013699,2]
[361805139,1747819838998,-500.0,0.00013699,2]
[361805140,1747819839008,-500.0,0.00013699,2]
[361805141,1747819839018,-500.0,0.00013699,2]
[361805142,1747819839027,-500.0,0.00013699,2]
[361805143,1747819839038,-500.0,0.00013699,2]
[361805144,1747819839047,-500.0,0.00013699,2]
[361805145,1747819839064,-500.0,0.00013699,2]
[361805146,1747819839079,-500.0,0.00013699,2]
[361805147,1747819839089,-500.0,0.00013699,2]
[361805148,1747819839099,-500.0,0.00013699,2]
[361805149,1747819839108,-500.0,0.00013699,2]
[361805150,1747819839117,-544.59207723,0.00013699,2]
[361805151,1747819839127,-500.0,0.00013699,2]
[361805152,1747819839137,-500.0,0.00013699,2]
[361805153,1747819839151,-500.0,0.00013699,2]
[361805154,1747819839161,-500.0,0.00013699,2]
[361805155,1747819839171,-500.0,0.00013699,2]
[361805156,1747819839180,-500.0,0.00013699,2]
[361805157,1747819839190,-500.0,0.00013699,2]
[361805158,1747819839199,-500.0,0.00013699,2]
[361805159,1747819839209,-500.0,0.00013699,2]
[361805160,1747819839221,-500.0,0.00013699,2]
[361805161,1747819839231,-500.0,0.00013699,2]
[361805162,1747819839241,-500.0,0.00013699,2]
[361805163,1747819839250,-506.55852669,0.00013699,2]
[361805164,1747819839260,-155.0,0.00013699,2]
[361805165,1747819839269,-969.32405378,0.00013699,2]
[361805166,1747819839278,-969.32405378,0.00013699,2]
[361805167,1747819839288,-969.32405378,0.00013699,2]
[361805168,1747819839297,-969.32405378,0.00013699,2]
[361805169,1747819839307,-969.32405378,0.00013699,2]
[361805170,1747819839317,-969.32405378,0.00013699,2]
[361805171,1747819839326,-969.32405378,0.00013699,2]
[361805172,1747819839336,-969.32405378,0.00013699,2]
[361805173,1747819839345,-969.32405378,0.00013699,2]
[361805174,1747819839355,-969.32405378,0.00013699,2]
[361805175,1747819839366,-969.32405378,0.00013699,2]
[361805176,1747819839376,-969.32405378,0.00013699,2]
[361805177,1747819839385,-969.32405378,0.00013699,2]
[361805178,1747819839395,-969.32405378,0.00013699,2]
[361805179,1747819839404,-969.32405378,0.00013699,2]
[361805180,1747819839414,-969.32405378,0.00013699,2]
[361805181,1747819839423,-969.32405378,0.00013699,2]
[361805182,1747819839433,-969.32405378,0.00013699,2]
[361805183,1747819839442,-969.32405378,0.00013699,2]
[361805184,1747819839451,-969.32405378,0.00013699,2]
[361805185,1747819839461,-969.32405378,0.00013699,2]
[361805186,1747819839472,-969.32405378,0.00013699,2]
[361805187,1747819839481,-969.32405378,0.00013699,2]
[361805188,1747819839491,-969.32405378,0.00013699,2]
[361805189,1747819839500,-969.32405378,0.00013699,2]
[361805190,1747819839511,-969.32405378,0.00013699,2]
[361805191,1747819839521,-969.32405378,0.00013699,2]
[361805192,1747819839530,-969.32405378,0.00013699,2]
[361805193,1747819839540,-969.32405378,0.00013699,2]
[361805194,1747819839550,-969.32405378,0.00013699,2]
[361805195,1747819839559,-969.32405378,0.00013699,2]
[361805196,1747819839569,-969.32405378,0.00013699,2]
[361805197,1747819839580,-969.32405378,0.00013699,2]
[361805198,1747819839590,-1184.72939904,0.00013699,2]
[361805199,1747819839600,-169.13202046,0.00015562,2]
[361805200,1747819839611,-258.54348943,0.00015912,2]
[361805201,1747819839622,-248.26733003,0.000161,2]
[361805202,1747819839632,-248.26732974,0.000161,2]
[361805203,1747819839642,-248.26732974,0.000161,2]
[361805204,1747819839652,-248.26732974,0.00016176,2]
[361805205,1747819839663,-248.26732974,0.00016934,2]
[361805206,1747819839673,-248.26732974,0.00017693,2]
[361805207,1747819839683,-258.54348943,0.00018226,2]
[361805208,1747819839692,-248.26732974,0.00018452,2]
[361805209,1747819839702,-3526.77744905,0.00018455,2]
[361805210,1747819839711,-248.26732974,0.0001921,2]
[361805211,1747819839722,-169.13202046,0.00019224,2]
[361805212,1747819839731,-248.26732974,0.00019969,2]
[361805213,1747819839741,-258.54348943,0.00020539,2]
[361805214,1747819839751,-248.26732974,0.00020728,3]
[361805215,1747819839760,-248.26732974,0.00021486,5]
[361805216,1747819839771,-248.26732974,0.00022245,6]
[361805217,1747819839781,-258.54348943,0.00022853,2]
[361805218,1747819839792,-169.13202046,0.00022886,2]
[361805219,1747819839802,-248.26732974,0.00023003,8]
[361805220,1747819839813,-500.0,0.00023205,2]
[361805221,1747819839823,-248.26732974,0.00023762,9]
[361805222,1747819839833,-5000.00092645,0.00024,5]
[361805223,1747819839843,-248.26732974,0.00024521,11]
[361805224,1747819839853,-51189.9232231,0.000248,2]
[361805225,1747819839863,-906.476863,0.00025,7]
[361805226,1747819839873,-999.0,0.00025,2]
[361805227,1747819839884,-258.54348943,0.00025166,2]
[361805228,1747819839895,-248.26732974,0.00025279,12]
[361805229,1747819839906,-500.0,0.00025534,2]
[361805230,1747819839917,-248.26732974,0.00026038,14]
[361805231,1747819839927,-500.0,0.00026356,2]
[361805232,1747819839938,-169.13202046,0.00026548,2]
[361805233,1747819839947,-248.26732974,0.00026797,15]
[361805234,1747819839957,-150.0,0.00027178,7]
[361805235,1747819839967,-3931.82084077,0.00027297,2]
[361805236,1747819839977,-154.66,0.00027397,2]
[361805237,1747819839987,-258.54348943,0.0002748,2]
[361805238,1747819839997,-248.26732974,0.00027555,17]
[361805239,1747819840007,-3931.82084076,0.00027936,2]
[361805240,1747819840017,-574.76605623,0.00028095,3]
[361805241,1747819840027,-248.26732974,0.00028314,18]
[361805242,1747819840037,-12797.4808058,0.00028565,2]
[361805244,1747819840047,-3931.82084076,0.00028575,2]
[361805245,1747819840057,-166.49,0.00028647,2]
[361805246,1747819840067,-165.65,0.00028816,30]
[361805247,1747819840077,-427.75853121,0.00029,2]
[361805248,1747819840089,-248.26732974,0.00029072,20]
[361805250,1747819840099,-301.13,0.00029103,2]
[361805251,1747819840109,-301.04,0.00029103,2]
[361805252,1747819840120,-301.21,0.00029103,2]
[361805253,1747819840129,-153.73,0.00029103,2]
[361805254,1747819840140,-3931.82084076,0.00029215,2]
[361805255,1747819840152,-600.36,0.00029524,2]
[361805256,1747819840162,-258.54348943,0.00029793,15]
[361805257,1747819840171,-248.26732974,0.00029831,21]
[361805258,1747819840182,-3931.82084076,0.00029854,2]
[361805259,1747819840192,-2690.97731949,0.0003013,2]
[361805260,1747819840202,-169.13202046,0.0003021,2]
[361805261,1747819840212,-3931.82084076,0.00030493,2]
[361805262,1747819840224,-248.26732974,0.0003059,23]
[361805263,1747819840234,-200.0,0.00030804,2]
[361805264,1747819840245,-374.83823806,0.00030864,2]
[361805265,1747819840255,-2247.55,0.00030869,2]
[361805266,1747819840264,-234.33,0.00030881,2]
[361805267,1747819840274,-12797.4808058,0.00030903,2]
[361805268,1747819840284,-250.0,0.00030913,2]
[361805269,1747819840294,-250.0,0.00030913,2]
[361805270,1747819840303,-1856.86,0.00030913,2]
[361805271,1747819840313,-799.56,0.00030913,2]
[361805272,1747819840323,-1434.55,0.00030913,5]
[361805273,1747819840334,-12797.4808058,0.00030935,2]
[361805274,1747819840343,-500.0,0.00030946,2]
[361805275,1747819840353,-1143.08,0.00030946,2]
[361805276,1747819840363,-23900.0,0.00030946,2]
[361805277,1747819840373,-164.93,0.00030976,2]
[361805278,1747819840383,-500.0,0.00030991,7]
[361805279,1747819840392,-3931.82084076,0.00031132,2]
[361805280,1747819840402,-500.0,0.00031152,2]
[361805281,1747819840412,-250.0,0.00031172,2]
[361805282,1747819840422,-1198.48,0.00031263,2]
[361805283,1747819840432,-1000.0,0.00031309,2]
[361805284,1747819840442,-2602.89,0.0003132,2]
[361805285,1747819840451,-248.26732974,0.00031348,24]
[361805286,1747819840461,-7587.95,0.00031479,2]
[361805287,1747819840471,-500.0,0.0003149,7]
[361805288,1747819840482,-303.32,0.00031657,2]
[361805289,1747819840492,-200.0,0.00031682,2]
[361805290,1747819840502,-192.05,0.0003169,120]
[361805291,1747819840513,-509.0,0.00031699,30]
[361805292,1747819840523,-2104.75,0.000317,2]
[361805293,1747819840532,-12797.4808058,0.00031762,2]
[361805294,1747819840543,-3931.82084076,0.00031772,2]
[361805295,1747819840553,-600.36,0.00031788,2]
[361805296,1747819840563,-150.0,0.00031793,2]
[361805297,1747819840573,-258.54348943,0.00032107,15]
[361805298,1747819840583,-248.26732974,0.00032107,26]
[361805299,1747819840593,-500.0,0.00032277,7]
[361805300,1747819840603,-4000.0,0.0003232,4]
[361805301,1747819840612,-3931.82084076,0.00032411,2]
[361805302,1747819840622,-167.17,0.00032755,2]
[361805303,1747819840632,-244.05311657,0.00032776,2]
[361805304,1747819840642,-417.64,0.00032787,2]
[361805305,1747819840652,-417.64,0.00032796,2]
[361805306,1747819840662,-500.0,0.00032798,2]
[361805307,1747819840671,-150.0,0.00032798,2]
[361805308,1747819840681,-150.0,0.00032798,2]
[361805309,1747819840691,-156.85515144,0.00032798,2]
[361805310,1747819840701,-3457.2054825,0.000328,60]
[361805311,1747819840710,-417.64,0.00032804,2]
[361805312,1747819840721,-417.64,0.00032813,2]
[361805313,1747819840730,-157.28656283,0.00032813,2]
[361805314,1747819840740,-151.11012977,0.00032813,2]
[361805315,1747819840750,-150.0,0.00032813,2]
[361805317,1747819840760,-152.29395762,0.00032813,2]
[361805319,1747819840769,-150.0,0.00032813,2]
[361805321,1747819840779,-12797.4808058,0.00032819,2]
[361805322,1747819840789,-417.64,0.00032822,2]
[361805323,1747819840798,-500.0,0.00032825,2]
[361805324,1747819840808,-150.0,0.00032825,2]
[361805325,1747819840818,-150.0,0.00032825,2]
[361805326,1747819840828,-417.64,0.0003283,2]
[361805327,1747819840837,-417.64,0.00032839,2]
[361805328,1747819840847,-150.0,0.0003284,2]
[361805329,1747819840857,-150.0,0.0003284,2]
[361805330,1747819840867,-370385.73835751,0.00032843,6]
[361805331,1747819840877,-51189.9232231,0.00032845,2]
[361805332,1747819840887,-18743.8613884,0.00032845,2]
[361805333,1747819840897,-417.64,0.00032847,2]
[361805334,1747819840907,-500.0,0.00032853,2]
[361805335,1747819840916,-150.0,0.00032853,2]
[361805336,1747819840926,-150.0,0.00032853,2]
[361805337,1747819840936,-115177.327252,0.00032856,2]
[361805338,1747819840946,-38406.51857215,0.00032856,2]
[361805339,1747819841792,-5700.16173466,0.00032856,2]
[361805340,1747819841805,-1022.1402,0.00032856,2]
[361805341,1747819841817,-20056.50588675,0.00032856,2]
[361805342,1747819841828,-1158.53384741,0.00032856,2]
[361805343,1747819841954,-848.7586614,0.00032856,2]
[361805344,1747819841987,-530.09093014,0.00032856,2]
[361805360,1747819843374,-262.44822189,0.00032856,2]
[361805361,1747819843586,-53849.9409706,0.00032856,2]
[361805362,1747819843597,-417.64,0.00032856,2]
[361805363,1747819843606,-417.64,0.00032865,2]
[361805364,1747819843616,-4685.96534711,0.00032865,2]
[361805365,1747819843625,-248.26732974,0.00032866,27]
[361805366,1747819843635,-25594.9616115,0.00032866,2]
[361805367,1747819843646,-89033.3415951,0.00032866,2]
[361805368,1747819843656,-18743.8613884,0.00032866,2]
[361805370,1747819843665,-150.0,0.00032868,2]
[361805372,1747819843675,-150.0,0.00032868,2]
[361805374,1747819843685,-160.54169083,0.00032873,5]
[361805376,1747819843694,-500.24932767,0.00032873,5]
[361805378,1747819843704,-502.47839955,0.00032873,5]
[361805380,1747819843713,-501.35838057,0.00032873,5]
[361805383,1747819843723,-417.64,0.00032873,2]
[361805385,1747819843734,-150.0,0.00032875,2]
[361805388,1747819843744,-173.63645203,0.00032876,2]
[361805390,1747819843755,-188692.83004469,0.00032876,2]
[361805392,1747819843765,-420.0,0.00032876,5]
[361805394,1747819843774,-420.0,0.00032876,5]
[361805395,1747819843784,-420.0,0.00032876,5]
[361805396,1747819843794,-420.0,0.00032876,5]
[361805398,1747819843804,-420.0,0.00032876,5]
[361805399,1747819843814,-420.0,0.00032876,5]
[361805400,1747819843824,-420.0,0.00032876,5]
[361805402,1747819843834,-420.0,0.00032876,5]
[361805403,1747819843844,-420.0,0.00032876,5]
[361805404,1747819843854,-420.0,0.00032876,5]
[361805405,1747819843863,-420.0,0.00032876,5]
[361805406,1747819843873,-420.0,0.00032876,5]
[361805407,1747819843883,-420.0,0.00032876,5]
[361805408,1747819843893,-420.0,0.00032876,5]
[361805409,1747819843903,-420.0,0.00032876,5]
[361805410,1747819843914,-420.0,0.00032876,5]
[361805411,1747819843924,-420.0,0.00032876,5]
[361805412,1747819843934,-420.0,0.00032876,5]
[361805413,1747819843944,-420.0,0.00032876,5]
[361805414,1747819843954,-420.0,0.00032876,5]
[361805415,1747819843964,-420.0,0.00032876,5]
[361805416,1747819843973,-420.0,0.00032876,5]
[361805417,1747819843983,-232.78014541,0.00032876,5]
[361805418,1747819843993,-420.0,0.00032876,5]
[361805419,1747819844003,-420.0,0.00032876,5]
[361805420,1747819844012,-2953.847017,0.00032876,5]
[361805421,1747819844022,-420.0,0.00032876,5]
[361805422,1747819844032,-420.0,0.00032876,5]
[361805423,1747819844042,-420.0,0.00032876,5]
[361805424,1747819844052,-420.0,0.00032876,5]
[361805425,1747819844061,-154.385501,0.00032876,5]
[361805426,1747819844072,-183.76283,0.00032876,5]
[361805427,1747819844082,-420.0,0.00032876,5]
[361805428,1747819844092,-1521.45,0.00032876,5]
[361805429,1747819844102,-420.0,0.00032876,5]
[361805430,1747819844112,-1551.108474,0.00032876,5]
[361805431,1747819844123,-420.0,0.00032876,5]
[361805432,1747819844133,-420.0,0.00032876,5]
[361805433,1747819844146,-25522.99185499,0.00032876,4]
[361805434,1747819844156,-420.0,0.00032876,5]
[361805435,1747819844166,-420.0,0.00032876,5]
[361805436,1747819844175,-420.0,0.00032876,5]
[361805437,1747819844187,-420.0,0.00032876,5]
[361805438,1747819844196,-433.52,0.00032876,5]
[361805439,1747819844206,-420.0,0.00032876,5]
[361805440,1747819844217,-784.38,0.00032876,5]
[361805441,1747819844226,-420.0,0.00032876,5]
[361805443,1747819844236,-420.0,0.00032876,5]
[361805444,1747819844246,-588.53,0.00032876,5]
[361805445,1747819844256,-420.0,0.00032876,5]
[361805446,1747819844266,-420.0,0.00032876,5]
[361805447,1747819844276,-420.0,0.00032876,5]
[361805448,1747819844286,-420.0,0.00032876,5]
[361805449,1747819844296,-420.0,0.00032876,5]
[361805450,1747819844305,-420.0,0.00032876,5]
[361805451,1747819844315,-420.0,0.00032876,5]
[361805452,1747819844325,-420.0,0.00032876,5]
[361805453,1747819844335,-906.39,0.00032876,5]
[361805454,1747819844346,-510.41952141,0.00032876,5]
[361805455,1747819844356,-912.76,0.00032876,5]
[361805456,1747819844366,-420.0,0.00032876,5]
[361805457,1747819844376,-420.0,0.00032876,5]
[361805458,1747819844387,-155.70751175,0.00032876,5]
[361805459,1747819844397,-420.0,0.00032876,5]
[361805460,1747819844407,-1051.35,0.00032876,5]
[361805461,1747819844417,-1711.92,0.00032876,5]
[361805462,1747819844428,-1610.57,0.00032876,5]
[361805463,1747819844437,-420.0,0.00032876,5]
[361805464,1747819844448,-420.0,0.00032876,5]
[361805465,1747819844457,-224.57554018,0.00032876,5]
[361805466,1747819844468,-420.0,0.00032876,5]
[361805467,1747819844478,-539.4,0.00032876,5]
[361805468,1747819844488,-420.0,0.00032876,5]
[361805469,1747819844498,-420.0,0.00032876,5]
[361805470,1747819844509,-543.69,0.00032876,5]
[361805471,1747819844519,-574.08,0.00032876,5]
[361805472,1747819844529,-420.0,0.00032876,5]
[361805473,1747819844539,-516.46,0.00032876,5]
[361805474,1747819844547,-1296.93,0.00032876,5]
[361805475,1747819844555,-420.0,0.00032876,5]
[361805476,1747819844562,-420.0,0.00032876,5]
[361805477,1747819844570,-420.0,0.00032876,5]
[361805478,1747819844578,-1235.0,0.00032876,5]
[361805479,1747819844587,-420.0,0.00032876,5]
[361805480,1747819844596,-286.78172355,0.00032876,5]
[361805481,1747819844605,-420.0,0.00032876,5]
[361805482,1747819844616,-939.2,0.00032876,5]
[361805483,1747819844626,-874.94,0.00032876,5]
[361805484,1747819844636,-420.0,0.00032876,5]
[361805485,1747819844647,-2419.89,0.00032876,5]
[361805486,1747819844657,-585.36,0.00032876,5]
[361805487,1747819844667,-420.0,0.00032876,5]
[361805488,1747819844677,-420.0,0.00032876,5]
[361805489,1747819844687,-420.0,0.00032876,5]
[361805490,1747819844696,-420.0,0.00032876,5]
[361805491,1747819844706,-453.01,0.00032876,5]
[361805492,1747819844716,-611.86,0.00032876,5]
[361805493,1747819844726,-702.44,0.00032876,5]
[361805494,1747819844736,-1848.36,0.00032876,5]
[361805495,1747819844746,-528.56,0.00032876,5]
[361805496,1747819844756,-663.83,0.00032876,5]
[361805497,1747819844766,-497.39,0.00032876,5]
[361805498,1747819844775,-420.0,0.00032876,5]
[361805499,1747819844786,-1159.25,0.00032876,5]
[361805500,1747819844796,-420.0,0.00032876,5]
[361805501,1747819844806,-420.0,0.00032876,5]
[361805502,1747819844942,-528.86,0.00032876,5]
[361805503,1747819844952,-591.03,0.00032876,5]
[361805504,1747819844962,-420.0,0.00032876,5]
[361805505,1747819845181,-420.0,0.00032876,5]
[361805506,1747819845191,-420.0,0.00032876,5]
[361805507,1747819845201,-511.55,0.00032876,5]
[361805508,1747819845210,-951.09,0.00032876,5]
[361805509,1747819845221,-681.27,0.00032876,5]
[361805510,1747819845231,-1241.19,0.00032876,5]
[361805511,1747819845241,-420.0,0.00032876,5]
[361805512,1747819845251,-908.48,0.00032876,5]
[361805513,1747819845260,-1308.15,0.00032876,5]
[361805514,1747819845269,-420.0,0.00032876,5]
[361805515,1747819845279,-539.06,0.00032876,5]
[361805516,1747819845290,-1840.85,0.00032876,5]
[361805517,1747819845300,-420.0,0.00032876,5]
[361805518,1747819845310,-420.0,0.00032876,5]
[361805519,1747819845319,-420.0,0.00032876,5]
[361805520,1747819845328,-420.0,0.00032876,5]
[361805521,1747819845338,-1255.47,0.00032876,5]
[361805522,1747819845348,-2036.59,0.00032876,5]
[361805523,1747819845357,-420.0,0.00032876,5]
[361805524,1747819845367,-420.0,0.00032876,5]
[361805525,1747819845377,-1084.05,0.00032876,5]
[361805526,1747819845386,-858.22,0.00032876,5]
[361805527,1747819845395,-643.32,0.00032876,5]
[361805528,1747819845405,-420.0,0.00032876,5]
[361805529,1747819845415,-1075.17,0.00032876,5]
[361805530,1747819845424,-613.55,0.00032876,5]
[361805531,1747819845434,-420.46786349,0.00032876,5]
[361805532,1747819845444,-1276.87,0.00032876,5]
[361805533,1747819845453,-420.0,0.00032876,5]
[361805534,1747819845463,-420.0,0.00032876,5]